{"text_format":"1","workbook":"xlsx","n_sheets":1,"sheets":["Hoja1"],"not_rendered":{"charts":0,"images":2,"macros":1,"external_links":0,"defined_names":1,"comments":0,"pivot_tables":0},"unopened":[],"bounds":{"document_bytes":16777216,"sheet_cells":100000,"rows_first":2000,"rows_last":500,"rows_between":2000,"halvings":0,"cell_chars":16384,"cell_head_chars":4096},"cells_cut":0,"cells_raw":0,"read":"whole","date_system":"1900"}

{"sheet":"Hoja1","index":0,"n_rows":34,"n_cols":15,"rows_kept":34,"cut":false,"hidden":false,"merged":[[33,4,33,8],[0,1,0,11],[2,2,2,3],[2,6,2,7],[2,10,2,11],[8,2,8,3],[8,6,8,7],[8,10,8,11],[26,2,26,3],[26,6,26,7],[26,10,26,11],[14,2,14,3],[14,6,14,7],[14,10,14,11],[20,2,20,3],[20,6,20,7],[20,10,20,11],[32,4,32,8],[31,4,31,8]]}
[null,"Nombre y apellidos: …………………………………………………………………"]
[]
[null,null,{"$f":"CONCATENATE(N5, \" \", O4, \" \", O5)","v":"97 - 72"},null,null,null,{"$f":"CONCATENATE(N6, \" \", O4, \" \",O6)","v":"31 - 22"},null,null,null,{"$f":"CONCATENATE(N7, \" \", O4, \" \",O7)","v":"63 - 47"},null,null,"Número de cifras","Símbolo"]
[null,null,null,null,null,null,null,null,null,null,null,null,null,2,"-"]
[null,null,null,null,null,null,null,null,null,null,null,null,null,{"$f":"RANDBETWEEN(10^(N4-1),10^(N4)-1)","v":97},{"$f":"RANDBETWEEN(10^($N$4-1),N5)","v":72}]
[null,null,null,null,null,null,null,null,null,null,null,null,null,{"$f":"RANDBETWEEN(10^($N$4-1),10^($N$4)-1)","v":31},{"$f":"RANDBETWEEN(10^($N$4-1),N6)","v":22}]
[null,null,null,null,null,null,null,null,null,null,null,null,null,{"$f":"RANDBETWEEN(10^($N$4-1),10^($N$4)-1)","v":63},{"$f":"RANDBETWEEN(10^($N$4-1),N7)","v":47}]
[null,null,null,null,null,null,null,null,null,null,null,null,null,14,13]
[null,null,{"$f":"CONCATENATE(N8, \" \", O4, \" \",O8)","v":"14 - 13"},null,null,null,{"$f":"CONCATENATE(N9, \" \", O4, \" \",O9)","v":"33 - 12"},null,null,null,{"$f":"CONCATENATE(N10, \" \", O4, \" \",O10)","v":"46 - 34"},null,null,{"$f":"RANDBETWEEN(10^($N$4-1),10^($N$4)-1)","v":33},{"$f":"RANDBETWEEN(10^($N$4-1),N9)","v":12}]
[null,null,null,null,null,null,null,null,null,null,null,null,null,46,{"$f":"RANDBETWEEN(10^($N$4-1),N10)","v":34}]
[null,null,null,null,null,null,null,null,null,null,null,null,null,20,17]
[null,null,null,null,null,null,null,null,null,null,null,null,null,67,41]
[null,null,null,null,null,null,null,null,null,null,null,null,null,31,26]
[null,null,null,null,null,null,null,null,null,null,null,null,null,74,25]
[null,null,{"$f":"CONCATENATE(N11, \" \", O4, \" \",O11)","v":"20 - 17"},null,null,null,{"$f":"CONCATENATE(N12, \" \", O4, \" \",O12)","v":"67 - 41"},null,null,null,{"$f":"CONCATENATE(N13, \" \", O4, \" \",O13)","v":"31 - 26"},null,null,65,65]
[null,null,null,null,null,null,null,null,null,null,null,null,null,84,25]
[null,null,null,null,null,null,null,null,null,null,null,null,null,41,15]
[null,null,null,null,null,null,null,null,null,null,null,null,null,{"$f":"RANDBETWEEN(10^($N$4-1),10^($N$4)-1)","v":45},{"$f":"RANDBETWEEN(10^($N$4-1),N18)","v":18}]
[null,null,null,null,null,null,null,null,null,null,null,null,null,17,12]
[null,null,null,null,null,null,null,null,null,null,null,null,null,99,27]
[null,null,{"$f":"CONCATENATE(N14, \" \", O4, \" \",O14)","v":"74 - 25"},null,null,null,{"$f":"CONCATENATE(N15, \" \", O4, \" \",O15)","v":"65 - 65"},null,null,null,{"$f":"CONCATENATE(N16, \" \", O4, \" \",O16)","v":"84 - 25"},null,null,90,20]
[null,null,null,null,null,null,null,null,null,null,null,null,null,64,57]
[null,null,null,null,null,null,null,null,null,null,null,null,null,29,26]
[null,null,null,null,null,null,null,null,null,null,null,null,null,40,12]
[null,null,null,null,null,null,null,null,null,null,null,null,null,26,23]
[]
[null,null,{"$f":"CONCATENATE(N17, \" \", O4, \" \",O17)","v":"41 - 15"},null,null,null,{"$f":"CONCATENATE(N18, \" \", O4, \" \",O18)","v":"45 - 18"},null,null,null,{"$f":"CONCATENATE(N19, \" \", O4, \" \",O19)","v":"17 - 12"}]
[]
[]
[]
[]
[]
[null,null,null,null,"RECURSOSEP 2017"]
[null,null,null,null,"www.recursosep.com"]